[Event "10th Iberoamericano-ch 2024"]
[Site "Linares"]
[Date "2024.09.28"]
[Round "6.13"]
[White "Romero Calduch, Sergio"]
[Black "Merario Alarcon, Andres"]
[Result "1-0"]
[Annotator "ChessBase"]
[ECO "D37"]
[WhiteElo "2276"]
[BlackElo "2408"]
[PlyCount "107"]
[EventDate "2024.09.25"]
[EventType "swiss"]
[EventCountry "ESP"]
[SourceTitle "playchess.com"]
[Source "ChessBase"]
[SourceQuality "1"]
[TimeControl "5400+30"]

1. d4 {[%emt 0:00:36]} Nf6 {[%emt 0:00:23]} 2. c4 {[%emt 0:00:24]} e6 {[%emt 0:00:20]} 3. Nf3 {[%emt 0:00:15]} d5 {[%emt 0:00:17]} 4. Nc3 {[%emt 0:00:37]} dxc4 {[%emt 0:00:14]} 5. e3 {[%emt 0:01:01]} a6 {[%emt 0:00:15]} 6. a4 {[%emt 0:02:29]} b6 {[%emt 0:00:28]} 7. Bxc4 {[%emt 0:00:25]} Bb7 {[%emt 0:00:14]} 8. O-O {[%emt 0:00:46]} Bb4 {[%emt 0:00:28]} 9. Qe2 {[%emt 0:05:08]} O-O {[%emt 0:00:37]} 10. Rd1 {[%emt 0:00:20]} Qe7 {[%emt 0:01:35]} 11. Na2 {[%emt 0:06:07]} Bd6 {[%emt 0:00:10]} 12. Nc3 {[%emt 0:00:40]} Bb4 {[%emt 0:01:04]} 13. Na2 {[%emt 0:01:12]} Bd6 {[%emt 0:00:07]} 14. Nc3 {[%emt 0:00:26]} c5 {[%emt 0:00:26]} 15. e4 {[%emt 0:08:57]} cxd4 {[%emt 0:00:26]} 16. e5 {[%emt 0:11:47]} Bxe5 {[%emt 0:00:38]} 17. Nxe5 {[%emt 0:02:14]} dxc3 {[%emt 0:00:09]} 18. bxc3 {[%emt 0:00:22]} Nbd7 {[%emt 0:16:34]} 19. Nxd7 {[%emt 0:17:01]} Nxd7 {[%emt 0:00:10]} 20. Ba3 {[%emt 0:00:22]} Nc5 {[%emt 0:00:50]} 21. Qe5 {[%emt 0:01:52]} Rfc8 {[%emt 0:06:04]} 22. Bf1 {[%emt 0:04:11]} Qf6 {[%emt 0:11:42]} 23. Qe3 {[%emt 0:11:57]} Nxa4 {[%emt 0:03:41]} 24. c4 {[%emt 0:04:07]} Bc6 {[%emt 0:05:16]} 25. Bd6 {[%emt 0:01:23]} Rd8 {[%emt 0:01:42]} 26. Bc7 {[%emt 0:01:58]} Rxd1 {[%emt 0:04:26]} 27. Rxd1 {[%emt 0:00:04]} b5 {[%emt 0:02:15]} 28. Rd6 {[%emt 0:00:33]} Bb7 {[%emt 0:01:43]} 29. Rd7 {[%emt 0:03:08]} Qg6 {[%emt 0:06:27]} 30. Qa7 {[%emt 0:06:20]} Rf8 {[%emt 0:16:58]} 31. Bd6 {[%emt 0:00:48]} Bxg2 {[%emt 0:06:24]} 32. Bxg2 {[%emt 0:00:40]} Qb1+ {[%emt 0:02:07]} 33. Bf1 {[%emt 0:00:08]} Qg6+ {[%emt 0:00:22]} 34. Bg3 {[%emt 0:04:31]} bxc4 {[%emt 0:02:00]} 35. Qd4 {[%emt 0:02:07]} Qf6 {[%emt 0:04:13]} 36. Bxc4 {[%emt 0:01:27]} Nc3 {[%emt 0:02:43]} 37. Qxf6 {[%emt 0:01:55]} gxf6 {[%emt 0:00:01]} 38. Bxa6 {[%emt 0:00:11]} Ra8 {[%emt 0:00:34]} 39. Bc4 {[%emt 0:00:48]} Ra4 {[%emt 0:00:30]} 40. Rc7 {[%emt 0:00:23]} Ne4 {[%emt 0:01:43]} 41. Bf4 {[%emt 0:00:23]} Ra8 {[%emt 0:01:42]} 42. Bh6 {[%emt 0:00:38]} Rd8 {[%emt 0:00:00]} 43. Kg2 {[%emt 0:00:18]} Nd6 {[%emt 0:00:01]} 44. Bd3 {[%emt 0:00:23]} Nc8 {[%emt 0:02:44]} 45. Be2 {[%emt 0:00:37]} Nd6 {[%emt 0:00:16]} 46. Bh5 {[%emt 0:00:41]} e5 {[%emt 0:00:24]} 47. Kf1 {[%emt 0:00:43]} Re8 {[%emt 0:01:21]} 48. Rd7 {[%emt 0:00:15]} Re6 {[%emt 0:00:06]} 49. Kg2 {[%emt 0:00:26]} Ne8 {[%emt 0:00:01]} 50. Rd8 {[%emt 0:00:49]} f5 {[%emt 0:00:05]} 51. Bg4 {[%emt 0:00:06]} Rxh6 {[%emt 0:00:03]} 52. Bxf5 {[%emt 0:00:06]} Kg7 {[%emt 0:00:01]} 53. Rxe8 {[%emt 0:00:22]} Kf6 {[%emt 0:00:16]} 54. Rxe5 {[%emt 0:01:00]} 1-0

[Event "10th Iberoamericano-ch 2024"]
[Site "Linares"]
[Date "2024.09.28"]
[Round "6.14"]
[White "Iglesias Ferreira, Andres"]
[Black "Matamoros Franco, Carlos S."]
[Result "1/2-1/2"]
[Annotator "ChessBase"]
[ECO "B00"]
[WhiteElo "2285"]
[BlackElo "2404"]
[PlyCount "111"]
[EventDate "2024.09.25"]
[EventType "swiss"]
[EventCountry "ESP"]
[SourceTitle "playchess.com"]
[Source "ChessBase"]
[SourceQuality "1"]
[TimeControl "5400+30"]

1. e4 {[%emt 0:01:41]} d6 {[%emt 0:00:14]} 2. d4 {[%emt 0:00:17]} Nf6 {[%emt 0:00:09]} 3. Nc3 {[%emt 0:00:10]} e5 {[%emt 0:00:06]} 4. Nge2 {[%emt 0:01:26]} c6 {[%emt 0:00:55]} 5. h3 {[%emt 0:01:27]} b5 {[%emt 0:00:19]} 6. a3 {[%emt 0:00:09]} h5 {[%emt 0:00:48]} 7. f4 {[%emt 0:01:48]} Nbd7 {[%emt 0:03:33]} 8. fxe5 {[%emt 0:00:40]} dxe5 {[%emt 0:00:05]} 9. dxe5 {[%emt 0:00:14]} Nxe5 {[%emt 0:00:07]} 10. Qxd8+ {[%emt 0:00:20]} Kxd8 {[%emt 0:00:04]} 11. Bf4 {[%emt 0:00:21]} Nfd7 {[%emt 0:02:15]} 12. O-O-O {[%emt 0:01:44]} f6 {[%emt 0:01:30]} 13. Nd4 {[%emt 0:03:35]} Ke7 {[%emt 0:02:40]} 14. Be2 {[%emt 0:02:45]} g6 {[%emt 0:04:19]} 15. g4 {[%emt 0:02:03]} hxg4 {[%emt 0:04:55]} 16. hxg4 {[%emt 0:00:52]} Rxh1 {[%emt 0:06:26]} 17. Rxh1 {[%emt 0:00:10]} Kf7 {[%emt 0:01:56]} 18. g5 {[%emt 0:05:35]} Bg7 {[%emt 0:03:03]} 19. gxf6 {[%emt 0:02:18]} Bxf6 {[%emt 0:00:25]} 20. Rf1 {[%emt 0:05:06]} Bb7 {[%emt 0:05:58]} 21. Nb3 {[%emt 0:12:36]} Re8 {[%emt 0:03:25]} 22. Nd1 {[%emt 0:18:08]} Kg7 {[%emt 0:50:07]} 23. Ne3 {[%emt 0:03:00]} Rh8 {[%emt 0:01:10]} 24. Ng4 {[%emt 0:11:02]} Nxg4 {[%emt 0:00:15]} 25. Bxg4 {[%emt 0:00:21]} Ne5 {[%emt 0:00:22]} 26. Be6 {[%emt 0:03:53]} Rf8 {[%emt 0:05:28]} 27. Nc5 {[%emt 0:02:19]} Bg5 {[%emt 0:00:19]} 28. Bf5 {[%emt 0:05:57]} Bxf4+ {[%emt 0:01:23]} 29. Rxf4 {[%emt 0:00:11]} Rf7 {[%emt 0:01:37]} 30. Ne6+ {[%emt 0:02:31]} Kg8 {[%emt 0:00:16]} 31. Ng5 {[%emt 0:00:21]} gxf5 {[%emt 0:01:12]} 32. Nxf7 {[%emt 0:00:06]} Kxf7 {[%emt 0:00:01]} 33. Rxf5+ {[%emt 0:00:46]} Ke6 {[%emt 0:00:03]} 34. Rh5 {[%emt 0:00:20]} c5 {[%emt 0:00:40]} 35. Rh6+ {[%emt 0:00:20]} Ke7 {[%emt 0:00:13]} 36. Rh5 {[%emt 0:00:40]} Ke6 {[%emt 0:00:44]} 37. Rh6+ {[%emt 0:00:43]} Ke7 {[%emt 0:00:06]} 38. Rh7+ {[%emt 0:01:36]} Nf7 {[%emt 0:00:05]} 39. Rh5 {[%emt 0:00:11]} Kd6 {[%emt 0:01:12]} 40. b4 {[%emt 0:00:27]} Bxe4 {[%emt 0:01:11]} 41. Rxc5 {[%emt 0:00:37]} Bc6 {[%emt 0:00:17]} 42. a4 {[%emt 0:01:53]} a6 {[%emt 0:00:27]} 43. a5 {[%emt 0:00:49]} Ne5 {[%emt 0:00:13]} 44. Rc3 {[%emt 0:00:06]} Nc4 {[%emt 0:00:47]} 45. Rh3 {[%emt 0:00:28]} Kc7 {[%emt 0:00:12]} 46. Kd1 {[%emt 0:00:41]} Bb7 {[%emt 0:00:07]} 47. Ke2 {[%emt 0:00:21]} Kb8 {[%emt 0:00:24]} 48. Kd3 {[%emt 0:00:14]} Ka7 {[%emt 0:01:18]} 49. Kd4 {[%emt 0:00:06]} Nd6 {[%emt 0:00:07]} 50. Rh7 {[%emt 0:02:09]} Nc4 {[%emt 0:00:04]} 51. Kc5 {[%emt 0:00:32]} Ne3 {[%emt 0:00:18]} 52. c3 {[%emt 0:00:57]} Nc4 {[%emt 0:00:21]} 53. Re7 {[%emt 0:00:29]} Na3 {[%emt 0:00:05]} 54. Kd6 {[%emt 0:00:14]} Nc4+ {[%emt 0:00:45]} 55. Kc7 {[%emt 0:00:07]} Na3 {[%emt 0:00:16]} 56. Re6 {[%emt 0:02:34]} 1/2-1/2

[Event "10th Iberoamericano-ch 2024"]
[Site "Linares"]
[Date "2024.09.28"]
[Round "6.15"]
[White "Escalona Landi, Samid Eduardo"]
[Black "Labiano Hernandez, Juan"]
[Result "1/2-1/2"]
[Annotator "ChessBase"]
[ECO "A09"]
[WhiteElo "2305"]
[BlackElo "2398"]
[PlyCount "152"]
[EventDate "2024.09.25"]
[EventType "swiss"]
[EventCountry "ESP"]
[SourceTitle "playchess.com"]
[Source "ChessBase"]
[SourceQuality "1"]
[TimeControl "5400+30"]

1. Nf3 {[%emt 0:03:31]} d5 {[%emt 0:00:43]} 2. c4 {[%emt 0:00:05]} d4 {[%emt 0:00:25]} 3. g3 {[%emt 0:00:05]} Nc6 {[%emt 0:00:56]} 4. Bg2 {[%emt 0:00:08]} e5 {[%emt 0:00:06]} 5. d3 {[%emt 0:00:04]} Bb4+ {[%emt 0:01:04]} 6. Nbd2 {[%emt 0:00:01]} a5 {[%emt 0:00:15]} 7. O-O {[%emt 0:00:02]} Nf6 {[%emt 0:00:18]} 8. a3 {[%emt 0:00:00]} Be7 {[%emt 0:00:59]} 9. Rb1 {[%emt 0:00:02]} a4 {[%emt 0:08:39]} 10. Ne1 {[%emt 0:00:16]} O-O {[%emt 0:00:30]} 11. Nc2 {[%emt 0:00:05]} Re8 {[%emt 0:01:40]} 12. b4 {[%emt 0:01:33]} axb3 {[%emt 0:00:05]} 13. Nxb3 {[%emt 0:00:16]} Bf8 {[%emt 0:04:45]} 14. Bd2 {[%emt 0:01:26]} Bg4 {[%emt 0:10:15]} 15. Nb4 {[%emt 0:00:58]} e4 {[%emt 0:03:46]} 16. dxe4 {[%emt 0:00:50]} Rxa3 {[%emt 0:10:00]} 17. Nd3 {[%emt 0:24:01]} Be6 {[%emt 0:10:06]} 18. Qc2 {[%emt 0:00:18]} Ra4 {[%emt 0:03:25]} 19. Nb2 {[%emt 0:10:09]} Ra2 {[%emt 0:12:13]} 20. Nc1 {[%emt 0:01:54]} Ra3 {[%emt 0:03:22]} 21. Nbd3 {[%emt 0:00:33]} Qa8 {[%emt 0:00:52]} 22. Nf4 {[%emt 0:00:07]} Nd7 {[%emt 0:10:48]} 23. Nxe6 {[%emt 0:09:24]} fxe6 {[%emt 0:00:31]} 24. Nd3 {[%emt 0:00:05]} Nc5 {[%emt 0:03:25]} 25. e5 {[%emt 0:00:52]} Ra2 {[%emt 0:01:14]} 26. Rb2 {[%emt 0:00:27]} Rxb2 {[%emt 0:00:12]} 27. Qxb2 {[%emt 0:00:06]} Qa6 {[%emt 0:03:02]} 28. Ra1 {[%emt 0:17:33]} Qxc4 {[%emt 0:00:37]} 29. Nxc5 {[%emt 0:00:08]} Qxc5 {[%emt 0:01:10]} 30. Qxb7 {[%emt 0:00:22]} Nxe5 {[%emt 0:01:24]} 31. Rc1 {[%emt 0:05:13]} Qb6 {[%emt 0:00:50]} 32. Qxc7 {[%emt 0:03:50]} Qxc7 {[%emt 0:00:36]} 33. Rxc7 {[%emt 0:00:03]} Rb8 {[%emt 0:00:49]} 34. Bh3 {[%emt 0:01:49]} Rb1+ {[%emt 0:00:40]} 35. Kg2 {[%emt 0:00:25]} Rb6 {[%emt 0:00:14]} 36. f4 {[%emt 0:01:13]} Nf7 {[%emt 0:01:48]} 37. Rc4 {[%emt 0:02:26]} d3 {[%emt 0:02:23]} 38. Kf3 {[%emt 0:09:29]} dxe2 {[%emt 0:00:58]} 39. Kxe2 {[%emt 0:00:03]} e5 {[%emt 0:01:14]} 40. Bg2 {[%emt 0:01:49]} exf4 {[%emt 0:00:32]} 41. Rxf4 {[%emt 0:00:17]} Re6+ {[%emt 0:00:59]} 42. Kd3 {[%emt 0:01:07]} Rd6+ {[%emt 0:00:48]} 43. Kc2 {[%emt 0:00:08]} g6 {[%emt 0:00:59]} 44. Ra4 {[%emt 0:00:22]} Rd7 {[%emt 0:00:42]} 45. Ra8 {[%emt 0:00:17]} Rd8 {[%emt 0:00:32]} 46. Ra7 {[%emt 0:00:56]} Bh6 {[%emt 0:00:54]} 47. Ba5 {[%emt 0:00:20]} Rc8+ {[%emt 0:00:29]} 48. Kb3 {[%emt 0:00:40]} Be3 {[%emt 0:00:58]} 49. Rd7 {[%emt 0:01:22]} Rc5 {[%emt 0:00:57]} 50. Bc3 {[%emt 0:01:19]} Rf5 {[%emt 0:00:35]} 51. Re7 {[%emt 0:03:38]} Bc5 {[%emt 0:00:36]} 52. Re8+ {[%emt 0:00:04]} Bf8 {[%emt 0:00:02]} 53. Ra8 {[%emt 0:01:56]} Rb5+ {[%emt 0:00:51]} 54. Kc2 {[%emt 0:00:28]} Nd6 {[%emt 0:00:27]} 55. Bc6 {[%emt 0:01:20]} Rc5 {[%emt 0:00:02]} 56. Ba4 {[%emt 0:00:01]} Kf7 {[%emt 0:01:07]} 57. Kd3 {[%emt 0:00:46]} Rc7 {[%emt 0:00:34]} 58. Bb4 {[%emt 0:00:21]} Be7 {[%emt 0:00:31]} 59. Bb3+ {[%emt 0:01:20]} Kf6 {[%emt 0:00:29]} 60. Ra6 {[%emt 0:00:45]} Rd7 {[%emt 0:00:19]} 61. Bc3+ {[%emt 0:00:53]} Kg5 {[%emt 0:00:30]} 62. Bd2+ {[%emt 0:00:38]} Kf6 {[%emt 0:00:09]} 63. Ba4 {[%emt 0:00:29]} Rd8 {[%emt 0:00:18]} 64. Ba5 {[%emt 0:00:20]} Rc8 {[%emt 0:00:15]} 65. Ra7 {[%emt 0:00:37]} Kf7 {[%emt 0:00:48]} 66. Bb4 {[%emt 0:00:44]} Rd8 {[%emt 0:00:11]} 67. Bb3+ Kf8 {[%emt 0:00:06]} 68. Ke2 {[%emt 0:01:08]} Rb8 {[%emt 0:00:28]} 69. Bxd6 {[%emt 0:00:26]} Bxd6 {[%emt 0:00:01]} 70. Bc2 {[%emt 0:00:18]} Rb2 {[%emt 0:00:28]} 71. Kd3 {[%emt 0:00:06]} Be7 {[%emt 0:00:08]} 72. Ra4 {[%emt 0:00:36]} Rb5 {[%emt 0:00:12]} 73. Ke2 {[%emt 0:00:12]} Rh5 {[%emt 0:00:22]} 74. h4 {[%emt 0:00:01]} Rc5 {[%emt 0:00:19]} 75. Bd3 {[%emt 0:00:17]} Re5+ {[%emt 0:00:48]} 76. Re4 {[%emt 0:00:07]} Rxe4+ {[%emt 0:00:06]} 1/2-1/2

[Event "10th Iberoamericano-ch 2024"]
[Site "Linares"]
[Date "2024.09.28"]
[Round "6.16"]
[White "Horcajuelo Rocamora, Martin"]
[Black "Leyva, Hector"]
[Result "1-0"]
[Annotator "ChessBase"]
[ECO "E73"]
[WhiteElo "2394"]
[BlackElo "2296"]
[PlyCount "87"]
[EventDate "2024.09.25"]
[EventType "swiss"]
[EventCountry "ESP"]
[SourceTitle "playchess.com"]
[Source "ChessBase"]
[SourceQuality "1"]
[TimeControl "5400+30"]

1. d4 {[%emt 0:00:04]} Nf6 {[%emt 0:00:17]} 2. c4 {[%emt 0:00:08]} g6 {[%emt 0:00:14]} 3. Nc3 {[%emt 0:00:08]} Bg7 {[%emt 0:00:11]} 4. e4 {[%emt 0:00:09]} d6 {[%emt 0:00:09]} 5. Be2 {[%emt 0:00:07]} a6 {[%emt 0:02:10]} 6. h3 {[%emt 0:00:48]} Nc6 {[%emt 0:01:43]} 7. d5 {[%emt 0:02:04]} Na7 {[%emt 0:00:06]} 8. Be3 {[%emt 0:01:49]} O-O {[%emt 0:00:46]} 9. a4 {[%emt 0:08:17]} e6 {[%emt 0:00:48]} 10. Nf3 {[%emt 0:04:36]} exd5 {[%emt 0:00:06]} 11. cxd5 {[%emt 0:01:13]} Re8 {[%emt 0:00:08]} 12. Nd2 {[%emt 0:02:31]} c6 {[%emt 0:00:28]} 13. O-O {[%emt 0:04:13]} cxd5 {[%emt 0:01:40]} 14. exd5 {[%emt 0:01:29]} Rxe3 {[%emt 0:01:09]} 15. fxe3 {[%emt 0:00:19]} Qe7 {[%emt 0:00:09]} 16. e4 {[%emt 0:11:01]} Nd7 {[%emt 0:00:24]} 17. Nf3 {[%emt 0:05:13]} Ne5 {[%emt 0:00:37]} 18. Qd2 {[%emt 0:03:49]} Bd7 {[%emt 0:01:32]} 19. Rac1 {[%emt 0:06:23]} Rf8 {[%emt 0:01:39]} 20. Rce1 {[%emt 0:07:39]} Nc8 {[%emt 0:00:39]} 21. Kh1 {[%emt 0:02:26]} Nb6 {[%emt 0:02:01]} 22. b3 {[%emt 0:04:47]} Bc8 {[%emt 0:00:27]} 23. Qg5 {[%emt 0:04:32]} Bf6 {[%emt 0:06:41]} 24. Qe3 {[%emt 0:06:29]} Nbd7 {[%emt 0:00:11]} 25. Nb1 {[%emt 0:00:18]} Nxf3 {[%emt 0:21:56]} 26. Bxf3 {[%emt 0:00:46]} Ne5 {[%emt 0:15:31]} 27. Nd2 {[%emt 0:02:26]} Bg5 {[%emt 0:00:40]} 28. Qd4 {[%emt 0:00:23]} Bf4 {[%emt 0:03:56]} 29. Bd1 {[%emt 0:09:33]} Qh4 {[%emt 0:26:18]} 30. Rxf4 {[%emt 0:00:37]} Qxe1+ {[%emt 0:05:52]} 31. Rf1 {[%emt 0:00:11]} Qh4 {[%emt 0:02:16]} 32. Nf3 {[%emt 0:02:48]} Nxf3 {[%emt 0:00:12]} 33. Bxf3 {[%emt 0:00:20]} f5 {[%emt 0:03:24]} 34. Rc1 {[%emt 0:03:59]} Qe7 {[%emt 0:00:26]} 35. Re1 {[%emt 0:01:33]} Re8 {[%emt 0:00:27]} 36. Re2 {[%emt 0:01:14]} f4 {[%emt 0:00:16]} 37. Rc2 {[%emt 0:01:49]} Qh4 {[%emt 0:02:04]} 38. Rc7 {[%emt 0:01:11]} Qe1+ {[%emt 0:00:14]} 39. Qg1 {[%emt 0:00:04]} Qg3 {[%emt 0:00:24]} 40. Qa1 {[%emt 0:00:49]} Re5 {[%emt 0:01:15]} 41. Rxc8+ {[%emt 0:00:05]} Kg7 {[%emt 0:00:24]} 42. Rc1 {[%emt 0:00:29]} Kh6 {[%emt 0:00:14]} 43. Qc3 {[%emt 0:00:15]} Rh5 {[%emt 0:00:19]} 44. Bxh5 {[%emt 0:00:13]} 1-0

[Event "10th Iberoamericano-ch 2024"]
[Site "Linares"]
[Date "2024.09.28"]
[Round "6.17"]
[White "Noboa Silva, Kevin"]
[Black "Leiva, Gianmarco"]
[Result "1/2-1/2"]
[Annotator "ChessBase"]
[ECO "E49"]
[WhiteElo "2270"]
[BlackElo "2389"]
[PlyCount "141"]
[EventDate "2024.09.25"]
[EventType "swiss"]
[EventCountry "ESP"]
[SourceTitle "playchess.com"]
[Source "ChessBase"]
[SourceQuality "1"]
[TimeControl "5400+30"]

1. d4 {[%emt 0:00:02]} Nf6 {[%emt 0:18:02]} 2. c4 {[%emt 0:00:36]} e6 3. Nc3 {[%emt 0:00:20]} Bb4 {[%emt 0:00:17]} 4. e3 {[%emt 0:01:52]} O-O {[%emt 0:00:38]} 5. Bd3 {[%emt 0:00:36]} d5 {[%emt 0:00:05]} 6. a3 {[%emt 0:00:21]} Bxc3+ {[%emt 0:00:44]} 7. bxc3 {[%emt 0:00:06]} dxc4 {[%emt 0:00:14]} 8. Bxc4 {[%emt 0:00:16]} c5 {[%emt 0:00:04]} 9. Nf3 {[%emt 0:01:17]} Qc7 {[%emt 0:00:40]} 10. Be2 {[%emt 0:00:46]} Nc6 {[%emt 0:01:49]} 11. O-O {[%emt 0:01:48]} Rd8 {[%emt 0:06:15]} 12. c4 {[%emt 0:03:29]} b6 {[%emt 0:01:41]} 13. Bb2 {[%emt 0:01:24]} Ne7 {[%emt 0:00:47]} 14. Ne5 {[%emt 0:05:52]} Bb7 {[%emt 0:02:42]} 15. Bd3 {[%emt 0:03:34]} Ng6 {[%emt 0:07:40]} 16. Nxg6 {[%emt 0:09:47]} hxg6 {[%emt 0:00:46]} 17. Re1 {[%emt 0:00:30]} Rd7 {[%emt 0:09:04]} 18. h3 {[%emt 0:06:04]} Rad8 {[%emt 0:01:32]} 19. a4 {[%emt 0:01:24]} e5 {[%emt 0:01:13]} 20. a5 {[%emt 0:15:52]} cxd4 {[%emt 0:02:24]} 21. exd4 {[%emt 0:00:15]} exd4 {[%emt 0:00:57]} 22. axb6 {[%emt 0:01:10]} axb6 {[%emt 0:00:12]} 23. Qd2 {[%emt 0:01:01]} Nh7 {[%emt 0:14:13]} 24. Ba3 {[%emt 0:15:29]} Qc6 {[%emt 0:01:18]} 25. f3 {[%emt 0:00:30]} Qf6 {[%emt 0:02:19]} 26. f4 {[%emt 0:03:21]} Nf8 {[%emt 0:00:10]} 27. Bxf8 {[%emt 0:02:04]} Rxf8 {[%emt 0:02:59]} 28. Rab1 {[%emt 0:05:41]} Bc8 {[%emt 0:01:07]} 29. Re5 {[%emt 0:02:18]} Rd6 {[%emt 0:00:20]} 30. c5 {[%emt 0:02:24]} bxc5 {[%emt 0:02:14]} 31. Rxc5 {[%emt 0:00:10]} Bf5 {[%emt 0:02:22]} 32. Rb3 {[%emt 0:07:28]} Re8 {[%emt 0:02:03]} 33. Qf2 {[%emt 0:04:51]} Rdd8 {[%emt 0:09:09]} 34. Rcb5 {[%emt 0:01:47]} Bxd3 {[%emt 0:06:53]} 35. Rxd3 {[%emt 0:00:02]} Qa6 {[%emt 0:00:01]} 36. Qb2 {[%emt 0:01:05]} Re1+ {[%emt 0:01:01]} 37. Kh2 {[%emt 0:00:11]} Qd6 {[%emt 0:00:06]} 38. Qd2 {[%emt 0:01:17]} Re4 {[%emt 0:02:30]} 39. Rf3 {[%emt 0:00:28]} Rde8 {[%emt 0:00:22]} 40. Qb4 {[%emt 0:01:17]} Qf6 {[%emt 0:00:08]} 41. Rb6 {[%emt 0:00:47]} Qf5 {[%emt 0:02:58]} 42. Rb8 {[%emt 0:00:50]} Qd5 {[%emt 0:00:44]} 43. Qb5 {[%emt 0:01:03]} Qxb5 {[%emt 0:00:45]} 44. Rxb5 {[%emt 0:00:01]} Rd8 {[%emt 0:00:12]} 45. Rbb3 {[%emt 0:00:32]} Kf8 {[%emt 0:00:19]} 46. Kg3 {[%emt 0:00:04]} Re2 {[%emt 0:00:24]} 47. Rfd3 {[%emt 0:00:46]} Re4 {[%emt 0:01:05]} 48. Kf3 {[%emt 0:00:19]} f5 {[%emt 0:00:13]} 49. Rb7 {[%emt 0:01:07]} Rd6 {[%emt 0:00:35]} 50. Ra7 {[%emt 0:00:32]} Kg8 {[%emt 0:00:27]} 51. Rb7 {[%emt 0:00:17]} Kh7 {[%emt 0:00:16]} 52. Rb8 {[%emt 0:00:46]} Rd7 {[%emt 0:00:23]} 53. Ra8 {[%emt 0:00:21]} Re1 {[%emt 0:01:03]} 54. Ra4 {[%emt 0:00:14]} Re4 {[%emt 0:00:09]} 55. Ra8 {[%emt 0:00:04]} g5 {[%emt 0:00:19]} 56. fxg5 {[%emt 0:00:20]} Kg6 {[%emt 0:00:01]} 57. g4 {[%emt 0:01:19]} Kxg5 {[%emt 0:00:18]} 58. h4+ {[%emt 0:00:49]} Kxh4 {[%emt 0:00:52]} 59. gxf5 {[%emt 0:00:01]} Re1 {[%emt 0:00:59]} 60. Ra4 {[%emt 0:00:52]} Rf1+ {[%emt 0:00:11]} 61. Kg2 {[%emt 0:00:36]} Rf4 {[%emt 0:00:07]} 62. Ra6 {[%emt 0:00:31]} Kg4 {[%emt 0:01:36]} 63. Rg3+ {[%emt 0:00:19]} Kxf5 {[%emt 0:00:04]} 64. Rag6 {[%emt 0:00:42]} d3 {[%emt 0:00:33]} 65. R3g5+ {[%emt 0:00:30]} Ke4 {[%emt 0:00:02]} 66. Re6+ {[%emt 0:00:16]} Kd4 {[%emt 0:00:03]} 67. Ra5 {[%emt 0:00:14]} d2 {[%emt 0:01:34]} 68. Ra1 {[%emt 0:00:18]} Re4 {[%emt 0:00:42]} 69. Rd1 {[%emt 0:00:20]} Kd3 {[%emt 0:00:33]} 70. Rxd2+ {[%emt 0:00:08]} Kxd2 {[%emt 0:00:30]} 71. Rxe4 {[%emt 0:00:04]} 1/2-1/2

[Event "10th Iberoamericano-ch 2024"]
[Site "Linares"]
[Date "2024.09.28"]
[Round "6.18"]
[White "Perea Fruet, Lorenzo"]
[Black "Moral Garcia, Serafin"]
[Result "1/2-1/2"]
[Annotator "ChessBase"]
[ECO "B40"]
[WhiteElo "2389"]
[BlackElo "2262"]
[PlyCount "80"]
[EventDate "2024.09.25"]
[EventType "swiss"]
[EventCountry "ESP"]
[SourceTitle "playchess.com"]
[Source "ChessBase"]
[SourceQuality "1"]
[TimeControl "5400+30"]

1. e4 {[%emt 0:00:25]} c5 {[%emt 0:00:08]} 2. Nf3 {[%emt 0:00:11]} e6 {[%emt 0:00:08]} 3. d3 {[%emt 0:00:06]} Nc6 {[%emt 0:00:10]} 4. g3 {[%emt 0:00:07]} d6 {[%emt 0:00:42]} 5. Bg2 {[%emt 0:00:35]} Nf6 {[%emt 0:00:12]} 6. O-O {[%emt 0:00:26]} Be7 {[%emt 0:01:11]} 7. Re1 {[%emt 0:02:34]} O-O {[%emt 0:02:00]} 8. c3 {[%emt 0:00:27]} Bd7 {[%emt 0:01:41]} 9. d4 {[%emt 0:02:25]} cxd4 {[%emt 0:02:33]} 10. cxd4 {[%emt 0:00:02]} d5 {[%emt 0:00:18]} 11. e5 {[%emt 0:01:03]} Ne4 {[%emt 0:00:14]} 12. Nc3 {[%emt 0:02:55]} Nxc3 {[%emt 0:03:26]} 13. bxc3 {[%emt 0:00:13]} Na5 {[%emt 0:03:05]} 14. Qd3 {[%emt 0:03:48]} a6 {[%emt 0:05:35]} 15. h4 {[%emt 0:04:08]} Bb5 {[%emt 0:03:06]} 16. Qc2 {[%emt 0:04:15]} Rc8 {[%emt 0:02:21]} 17. Ng5 {[%emt 0:03:26]} Bxg5 {[%emt 0:01:19]} 18. hxg5 {[%emt 0:08:44]} Qc7 {[%emt 0:07:43]} 19. Re3 {[%emt 0:07:04]} Nc4 {[%emt 0:02:36]} 20. Rf3 {[%emt 0:00:05]} Qa5 {[%emt 0:03:34]} 21. g4 {[%emt 0:02:14]} Qa4 {[%emt 0:02:38]} 22. Qxa4 {[%emt 0:10:04]} Bxa4 {[%emt 0:00:09]} 23. Bf1 {[%emt 0:01:20]} Bc2 {[%emt 0:00:53]} 24. Bd3 {[%emt 0:01:30]} Bxd3 {[%emt 0:00:50]} 25. Rxd3 {[%emt 0:00:02]} f6 {[%emt 0:03:56]} 26. exf6 {[%emt 0:01:46]} gxf6 {[%emt 0:00:29]} 27. Rf3 {[%emt 0:01:03]} fxg5 {[%emt 0:01:09]} 28. Rxf8+ {[%emt 0:00:07]} Kxf8 {[%emt 0:03:27]} 29. Bxg5 {[%emt 0:00:13]} Nd6 {[%emt 0:00:37]} 30. Bh6+ {[%emt 0:03:57]} Kf7 {[%emt 0:00:35]} 31. Kg2 {[%emt 0:00:18]} Rxc3 {[%emt 0:01:05]} 32. Rh1 {[%emt 0:00:02]} Ne4 {[%emt 0:02:53]} 33. a4 {[%emt 0:00:54]} b5 {[%emt 0:02:39]} 34. axb5 {[%emt 0:01:56]} axb5 {[%emt 0:00:09]} 35. Be3 {[%emt 0:02:24]} Nf6 {[%emt 0:09:46]} 36. Kf3 {[%emt 0:03:39]} Kg7 {[%emt 0:04:42]} 37. Rb1 {[%emt 0:00:58]} h5 {[%emt 0:02:48]} 38. gxh5 {[%emt 0:00:43]} Nxh5 {[%emt 0:00:08]} 39. Rxb5 {[%emt 0:00:05]} Kg6 {[%emt 0:01:53]} 40. Rb8 {[%emt 0:01:15]} Rc7 {[%emt 0:02:30]} 1/2-1/2

[Event "10th Iberoamericano-ch 2024"]
[Site "Linares"]
[Date "2024.09.28"]
[Round "6.19"]
[White "Masague Artero, Guerau"]
[Black "Prado Lobo, Jonas"]
[Result "1/2-1/2"]
[Annotator "ChessBase"]
[ECO "A07"]
[WhiteElo "2251"]
[BlackElo "2385"]
[PlyCount "28"]
[EventDate "2024.09.25"]
[EventType "swiss"]
[EventCountry "ESP"]
[SourceTitle "playchess.com"]
[Source "ChessBase"]
[SourceQuality "1"]
[TimeControl "5400+30"]

1. Nf3 {[%emt 0:00:03]} d5 {[%emt 0:00:06]} 2. g3 {[%emt 0:00:04]} g6 {[%emt 0:00:07]} 3. Bg2 {[%emt 0:01:54]} Bg7 {[%emt 0:00:05]} 4. c4 {[%emt 0:00:03]} dxc4 {[%emt 0:04:05]} 5. Qa4+ {[%emt 0:00:14]} Nc6 {[%emt 0:04:01]} 6. O-O {[%emt 0:00:08]} e5 {[%emt 0:08:06]} 7. Nxe5 {[%emt 0:00:08]} Bxe5 {[%emt 0:00:32]} 8. Bxc6+ {[%emt 0:00:05]} bxc6 {[%emt 0:00:14]} 9. Qxc6+ {[%emt 0:00:05]} Bd7 {[%emt 0:00:03]} 10. Qe4 {[%emt 0:00:11]} f6 {[%emt 0:00:33]} 11. f4 {[%emt 0:00:05]} Bf5 {[%emt 0:00:02]} 12. Qc6+ {[%emt 0:00:07]} Bd7 {[%emt 0:00:03]} 13. Qe4 {[%emt 0:00:05]} Bf5 {[%emt 0:00:03]} 14. Qc6+ {[%emt 0:11:01]} Bd7 1/2-1/2